{"text_format":"1","workbook":"xlsx","n_sheets":4,"sheets":["START HERE","Quiz","Question Bank","Commands"],"not_rendered":{"charts":0,"images":0,"macros":1,"external_links":0,"defined_names":0,"comments":0,"pivot_tables":0},"unopened":[],"bounds":{"document_bytes":16777216,"sheet_cells":100000,"rows_first":2000,"rows_last":500,"rows_between":2000,"halvings":0,"cell_chars":16384,"cell_head_chars":4096},"cells_cut":0,"cells_raw":0,"read":"whole","date_system":"1900"}

{"sheet":"START HERE","index":0,"n_rows":2,"n_cols":7,"rows_kept":2,"cut":false,"hidden":false,"merged":[[1,6,15,14]]}
[]
[null,null,null,null,null,null,"Notes: You will fill out the question bank with the questions you wish to ask.  The number of questions may or not filter down, you may have to drag the formula down.\n\nOnce you have the questions entered, select run settings and select how many questions you want to be asked. If you select less than 1 it will give you one questions. If you select more than the number of questions provided in the bank, it will give you the max. The questions will automatically be inserted into the quiz in a random order, with any required questions (marked by x) being first.\n\nThe 'next question' button will go to the next question, or score if you are on the last question. The score button will score all questions except for the current question and give you a score between 0-100.\n\n"]

{"sheet":"Quiz","index":1,"n_rows":9,"n_cols":12,"rows_kept":9,"cut":false,"hidden":false,"merged":[]}
["Questions","Guess 1","Guess 2","Guess 3","Guess 4","Guess 5","Guess 6","Correct Answer","# of Questions","Type","Choice","Correct?"]
["What battle was the turning point of the American Revolutiion?","Battle of Gettysburg","The French and Indian War","7 (it’s the universal answer)","Battle of Bunker Hill","Battle of Saratoga",null,"C",{"$f":"COUNTA(B2:G2)","v":5},"Radio",null,{"$f":"IF(H2=K2,TRUE,FALSE)","v":false}]
["Who was the first president?","George Washinghands","George Washingto","George Washington","Goerge Washingtons","Bill Clinton",null,"C",{"$f":"COUNTA(B3:G3)","v":5},"Radio",null,{"$f":"IF(H3=K3,TRUE,FALSE)","v":false}]
["The first human life to set foot in North America is most likely from…","Asia","Africa","Antartica","Australia","Europe",null,"E",{"$f":"COUNTA(B4:G4)","v":5},"CheckBox",null,{"$f":"IF(H4=K4,TRUE,FALSE)","v":false}]
["On the Chinese New Year of 1993, it was the Year of the …","Rooster","Wallaby","Penguin","Chinese","Years",null,"A",{"$f":"COUNTA(B5:G5)","v":5},"Radio",null,{"$f":"IF(H5=K5,TRUE,FALSE)","v":false}]
["Who was the second president?","Bill Clinton","Abraham Lincoln","Jane Adams","John Adams","Thomas Jefferson",null,"D",{"$f":"COUNTA(B6:G6)","v":5},"Radio",null,{"$f":"IF(H6=K6,TRUE,FALSE)","v":false}]
["Did you enjoy this quiz? (it does affect score) HINT: Have you been paying attention to the multiple choice answers?","Yes","No","7 (the universal answer)","I don't care","HOW COULD YOU POSSIBLY ANSWER THIS LOGICALLY? AND WHAT DOES IT HAVE TO DO WITH HISTORY?",null,"E",{"$f":"COUNTA(B7:G7)","v":5},"Radio",null,{"$f":"IF(H7=K7,TRUE,FALSE)","v":false}]
["Who is the Roman God of Love?","Venus","De Milo","Cupid","Hercules","Perseus",null,"C",{"$f":"COUNTA(B8:G8)","v":5},"TextBox",null,{"$f":"IF(H8=K8,TRUE,FALSE)","v":false}]
["Which of the following was the president of South Africa?","Nelson Mandela","Bob","George Washington","King George III","7 (the universal answer)",null,"A",{"$f":"COUNTA(B9:G9)","v":5},"Radio",null,{"$f":"IF(H9=K9,TRUE,FALSE)","v":false}]

{"sheet":"Question Bank","index":2,"n_rows":11,"n_cols":12,"rows_kept":11,"cut":false,"hidden":false,"merged":[]}
["Required","Random","Questions","Guess 1","Guess 2","Guess 3","Guess 4","Guess 5","Guess 6","Correct Answer","# of Questions","Type"]
["x",49,"What battle was the turning point of the American Revolutiion?","Battle of Gettysburg","The French and Indian War","7 (it’s the universal answer)","Battle of Bunker Hill","Battle of Saratoga",null,"C",{"$f":"COUNTA(D2:I2)","v":5},"Radio"]
[null,18,"Who was the first president?","George Washinghands","George Washingto","George Washington","Goerge Washingtons","Bill Clinton",null,"C",{"$f":"COUNTA(D3:I3)","v":5},"Radio"]
[null,43,"The first human life to set foot in North America is most likely from…","Asia","Africa","Antartica","Australia","Europe",null,"E",{"$f":"COUNTA(D4:I4)","v":5},"CheckBox"]
[null,50,"On the Chinese New Year of 1993, it was the Year of the …","Rooster","Wallaby","Penguin","Chinese","Years",null,"A",{"$f":"COUNTA(D5:I5)","v":5},"Radio"]
[null,71,"Who was the second president?","Bill Clinton","Abraham Lincoln","Jane Adams","John Adams","Thomas Jefferson",null,"D",{"$f":"COUNTA(D6:I6)","v":5},"Radio"]
[null,121,"Did you enjoy this quiz? (it does affect score) HINT: Have you been paying attention to the multiple choice answers?","Yes","No","7 (the universal answer)","I don't care","HOW COULD YOU POSSIBLY ANSWER THIS LOGICALLY? AND WHAT DOES IT HAVE TO DO WITH HISTORY?",null,"E",{"$f":"COUNTA(D7:I7)","v":5},"Radio"]
[null,130,"Who is the Roman God of Love?","Venus","De Milo","Cupid","Hercules","Perseus",null,"C",{"$f":"COUNTA(D8:I8)","v":5},"TextBox"]
[null,137,"Which of the following was the president of South Africa?","Nelson Mandela","Bob","George Washington","King George III","7 (the universal answer)",null,"A",{"$f":"COUNTA(D9:I9)","v":5},"Radio"]
[null,145,"Who bombeb Pearl Harbor?","Chinese","Greeks","Germans","Italians","Japanese",null,"E",{"$f":"COUNTA(D10:I10)","v":5},"Radio"]
[null,147,"Which of the following was a famous Renaissance artist?","Leonardo Dicaprio","Leonardo da Vinci","Wolfgang Amadeus Mozart","6 (not the universal answer)","Teenage Mutant Ninja Turtles","Bob","B",{"$f":"COUNTA(D11:I11)","v":6},"CheckBox"]

{"sheet":"Commands","index":3,"n_rows":2,"n_cols":2,"rows_kept":2,"cut":false,"hidden":false,"merged":[]}
["ActiveRow (Quiz):",2]
["Max Number of Questions:",11]